fUSD/lending_fUSD_20241207
["ID","MTS","AMOUNT","RATE_DAILY","PERIOD"]
[344608655,1733608236241,-404.47768576,0.00017102,2]
[344608656,1733608236251,-305.5369132,0.00017102,2]
[344608657,1733608236260,-258.80130606,0.00017102,2]
[344608658,1733608236270,-404.47768576,0.00017188,2]
[344608659,1733608236280,-305.5369132,0.00017188,2]
[344608660,1733608236291,-258.80130606,0.00017188,2]
[344608661,1733608236300,-150.0,0.00017188,2]
[344608662,1733608236308,-404.47768576,0.00017274,2]
[344608663,1733608236317,-305.5369132,0.00017274,2]
[344608664,1733608236327,-258.80130606,0.00017274,2]
[344608665,1733608236337,-640.0,0.00017302,30]
[344608666,1733608236346,-1769.0,0.00017308,2]
[344608667,1733608236357,-404.47768576,0.00017359,2]
[344608668,1733608236367,-305.5369132,0.00017359,2]
[344608669,1733608236376,-258.80130606,0.00017359,2]
[344608670,1733608236386,-404.47768576,0.00017445,2]
[344608671,1733608236395,-305.5369132,0.00017445,2]
[344608672,1733608236404,-258.80130606,0.00017445,2]
[344608673,1733608236413,-150.0,0.00017445,2]
[344608674,1733608236423,-150.0,0.00017488,2]
[344608675,1733608236432,-404.47768576,0.00017531,2]
[344608676,1733608236441,-305.5369132,0.00017531,2]
[344608677,1733608236453,-258.80130606,0.00017531,2]
[344608678,1733608236464,-160.43,0.00017564,2]
[344608679,1733608236475,-1769.0,0.00017582,2]
[344608680,1733608236490,-2000.0,0.00017582,2]
[344608681,1733608236502,-193.92,0.00017583,2]
[344608682,1733608236515,-1261.0,0.000176,5]
[344608683,1733608236525,-404.47768576,0.00017616,2]
[344608684,1733608236538,-305.5369132,0.00017616,2]
[344608685,1733608236551,-258.80130606,0.00017616,2]
[344608686,1733608236562,-1000.0,0.00017626,2]
[344608687,1733608236574,-11519.7318416,0.00017651,2]
[344608688,1733608236586,-640.0,0.00017663,30]
[344608689,1733608236597,-200.0,0.00017663,2]
[344608690,1733608236608,-339.42,0.00017698,2]
[344608691,1733608236619,-404.47768576,0.00017702,2]
[344608692,1733608236631,-305.5369132,0.00017702,2]
[344608693,1733608236643,-258.80130606,0.00017702,2]
[344608694,1733608236655,-150.0,0.00017702,2]
[344608695,1733608236666,-404.47768576,0.00017787,2]
[344608696,1733608236678,-305.5369132,0.00017787,2]
[344608697,1733608236689,-258.80130606,0.00017787,2]
[344608698,1733608236698,-200.0,0.0001784,2]
[344608699,1733608236708,-1769.0,0.00017856,2]
[344608700,1733608236719,-1300.0,0.00017856,2]
[344608701,1733608236731,-404.47768576,0.00017873,2]
[344608702,1733608236742,-305.5369132,0.00017873,2]
[344608703,1733608236754,-258.80130606,0.00017873,2]
[344608704,1733608236764,-236.86,0.000179,2]
[344608705,1733608236775,-236.86,0.000179,2]
[344608706,1733608236787,-236.86,0.000179,2]
[344608707,1733608236797,-236.86,0.000179,2]
[344608708,1733608236808,-236.86,0.000179,2]
[344608709,1733608236820,-236.86,0.000179,2]
[344608710,1733608236833,-236.86,0.000179,2]
[344608711,1733608236845,-236.86,0.000179,2]
[344608712,1733608236857,-236.86,0.000179,2]
[344608713,1733608236869,-236.86,0.000179,2]
[344608714,1733608236880,-236.86,0.000179,2]
[344608715,1733608236892,-236.86,0.000179,2]
[344608716,1733608236904,-236.86,0.000179,2]
[344608717,1733608236915,-236.86,0.000179,2]
[344608718,1733608236926,-236.86,0.000179,2]
[344608719,1733608236941,-236.86,0.000179,2]
[344608720,1733608236952,-236.86,0.000179,2]
[344608721,1733608236963,-236.86,0.000179,2]
[344608722,1733608236975,-236.86,0.000179,2]
[344608723,1733608236986,-236.86,0.000179,2]
[344608724,1733608236996,-236.86,0.000179,2]
[344608725,1733608237008,-236.86,0.000179,2]
[344608726,1733608237019,-236.86,0.000179,2]
[344608727,1733608237029,-236.86,0.000179,2]
[344608728,1733608237041,-236.86,0.000179,2]
[344608729,1733608237054,-236.86,0.000179,2]
[344608730,1733608237064,-236.86,0.000179,2]
[344608731,1733608237075,-236.86,0.000179,2]
[344608732,1733608237094,-236.86,0.000179,2]
[344608733,1733608237116,-236.86,0.000179,2]
[344608734,1733608237126,-236.86,0.000179,2]
[344608735,1733608237136,-236.86,0.000179,2]
[344608736,1733608237146,-236.86,0.000179,2]
[344608737,1733608237158,-236.86,0.000179,2]
[344608738,1733608237168,-236.86,0.000179,2]
[344608739,1733608237180,-236.86,0.000179,2]
[344608740,1733608237192,-236.86,0.000179,2]
[344608741,1733608237205,-236.86,0.000179,2]
[344608742,1733608237215,-236.86,0.000179,2]
[344608743,1733608237225,-236.86,0.000179,2]
[344608744,1733608237235,-236.86,0.000179,2]
[344608745,1733608237244,-236.86,0.000179,2]
[344608746,1733608237255,-236.86,0.000179,2]
[344608747,1733608237265,-236.86,0.000179,2]
[344608748,1733608237277,-236.86,0.000179,2]
[344608749,1733608237289,-236.86,0.000179,2]
[344608750,1733608237300,-236.86,0.000179,2]
[344608752,1733608237313,-236.86,0.000179,2]
[344608754,1733608237324,-236.86,0.000179,2]
[344608755,1733608237336,-236.86,0.000179,2]
[344608756,1733608237347,-236.86,0.000179,2]
[344608757,1733608237356,-236.86,0.000179,2]
[344608758,1733608237367,-236.86,0.000179,2]
[344608759,1733608237377,-236.86,0.000179,2]
[344608760,1733608237387,-236.86,0.000179,2]
[344608761,1733608237397,-236.86,0.000179,2]
[344608762,1733608237407,-236.86,0.000179,2]
[344608763,1733608237416,-236.86,0.000179,2]
[344608764,1733608237427,-236.86,0.000179,2]
[344608765,1733608237437,-236.86,0.000179,2]
[344608766,1733608237447,-236.86,0.000179,2]
[344608767,1733608237458,-236.86,0.000179,2]
[344608768,1733608237468,-236.86,0.000179,2]
[344608769,1733608237479,-236.86,0.000179,2]
[344608770,1733608237489,-236.86,0.000179,2]
[344608771,1733608237502,-236.86,0.000179,2]
[344608772,1733608237512,-236.86,0.000179,2]
[344608773,1733608237523,-236.86,0.000179,2]
[344608774,1733608237533,-236.86,0.000179,2]
[344608775,1733608237544,-236.86,0.000179,2]
[344608776,1733608237555,-236.86,0.000179,2]
[344608777,1733608237570,-236.86,0.000179,2]
[344608778,1733608237582,-236.86,0.000179,2]
[344608779,1733608237593,-236.86,0.000179,2]
[344608780,1733608237604,-236.86,0.000179,2]
[344608781,1733608237615,-236.86,0.000179,2]
[344608782,1733608237625,-236.86,0.000179,2]
[344608783,1733608237636,-236.86,0.000179,2]
[344608784,1733608237646,-236.86,0.000179,2]
[344608785,1733608237657,-236.86,0.000179,2]
[344608786,1733608237667,-236.86,0.000179,2]
[344608787,1733608237678,-236.86,0.000179,2]
[344608788,1733608237688,-236.86,0.000179,2]
[344608789,1733608237699,-236.86,0.000179,2]
[344608790,1733608237709,-236.86,0.000179,2]
[344608791,1733608237719,-236.86,0.000179,2]
[344608792,1733608237730,-236.86,0.000179,2]
[344608793,1733608237741,-236.86,0.000179,2]
[344608795,1733608237752,-236.86,0.000179,2]
[344608796,1733608237762,-236.86,0.000179,2]
[344608798,1733608237775,-236.86,0.000179,2]
[344608800,1733608237791,-236.86,0.000179,2]
[344608801,1733608237802,-236.86,0.000179,2]
[344608802,1733608237815,-236.86,0.000179,2]
[344608803,1733608237825,-236.86,0.000179,2]
[344608804,1733608237836,-236.86,0.000179,2]
[344608805,1733608237846,-236.86,0.000179,2]
[344608806,1733608237857,-236.86,0.000179,2]
[344608807,1733608237867,-236.86,0.000179,2]
[344608808,1733608237878,-404.47768576,0.00017959,2]
[344608809,1733608237888,-305.5369132,0.00017959,2]
[344608810,1733608237899,-258.80130606,0.00017959,2]
[344608811,1733608237909,-150.0,0.00017959,2]
[344608812,1733608237919,-150.0,0.00017959,2]
[344608813,1733608237929,-150.0,0.00017959,2]
[344608814,1733608237944,-510.13,0.00018,2]
[344608815,1733608237954,-17023.91101907,0.00018,2]
[344608816,1733608237965,-200.0,0.00018018,2]
[344608817,1733608237975,-1800.0,0.0001802,2]
[344608818,1733608237985,-640.0,0.00018024,30]
[344608819,1733608237995,-404.47768576,0.00018044,2]
[344608820,1733608238005,-305.5369132,0.00018044,2]
[344608821,1733608238016,-258.80130606,0.00018044,2]
[344608822,1733608238026,-1261.0,0.000181,5]
[344608823,1733608238036,-1769.0,0.0001813,2]
[344608824,1733608238047,-404.47768576,0.0001813,2]
[344608825,1733608238057,-305.5369132,0.0001813,2]
[344608826,1733608238068,-258.80130606,0.0001813,2]
[344608827,1733608238078,-500.0,0.0001813,2]
[344608828,1733608238088,-13209.99,0.00018142,7]
[344608829,1733608238099,-13209.99,0.00018142,7]
[344608830,1733608238110,-13209.99,0.00018142,7]
[344608831,1733608238120,-13209.99,0.00018142,7]
[344608832,1733608238130,-200.0,0.00018198,2]
[344608833,1733608238141,-404.47768576,0.00018216,2]
[344608834,1733608238151,-305.5369132,0.00018216,2]
[344608835,1733608238161,-258.80130606,0.00018216,2]
[344608836,1733608238171,-150.0,0.00018216,2]
[344608837,1733608238182,-404.47768576,0.00018301,2]
[344608838,1733608238192,-305.5369132,0.00018301,2]
[344608839,1733608238202,-258.80130606,0.00018301,2]
[344608840,1733608238212,-640.0,0.00018386,30]
[344608841,1733608238222,-404.47768576,0.00018387,2]
[344608842,1733608238232,-305.5369132,0.00018387,2]
[344608843,1733608238242,-258.80130606,0.00018387,2]
[344608844,1733608238253,-1769.0,0.00018404,2]
[344608845,1733608238263,-13209.99,0.00018415,7]
[344608846,1733608238273,-13209.99,0.00018415,7]
[344608847,1733608238284,-150.0,0.0001843,2]
[344608848,1733608238294,-150.0,0.00018472,2]
[344608849,1733608238304,-404.47768576,0.00018472,2]
[344608850,1733608238314,-305.5369132,0.00018472,2]
[344608851,1733608238324,-258.80130606,0.00018472,2]
[344608852,1733608238335,-4754.82639,0.000185,2]
[344608853,1733608238345,-150.0,0.00018524,2]
[344608854,1733608238355,-404.47768576,0.00018558,2]
[344608855,1733608238366,-305.5369132,0.00018558,2]
[344608856,1733608238376,-258.80130606,0.00018558,2]
[344608857,1733608238386,-1261.0,0.000186,6]
[344608858,1733608238396,-404.47768576,0.00018644,2]
[344608859,1733608238406,-305.5369132,0.00018644,2]
[344608860,1733608238416,-258.80130606,0.00018644,2]
[344608861,1733608238426,-161.24,0.00018656,2]
[344608862,1733608238436,-1769.0,0.00018678,2]
[344608863,1733608238446,-2000.0,0.00018678,2]
[344608864,1733608238456,-13209.99,0.00018689,7]
[344608865,1733608238466,-3374.8842929,0.00018689,7]
[344608866,1733608238860,-4545.11624933,0.00018689,7]
[344608867,1733608238871,-336.50062,0.00018689,7]
[344608868,1733608238881,-295.6043219,0.00018689,7]
[344608869,1733608238893,-3729.04145734,0.00018689,7]
[344608870,1733608238948,-928.84305853,0.00018689,7]
[344608871,1733608238958,-435.57,0.00018723,2]
[344608872,1733608238968,-768.25,0.00018723,2]
[344608873,1733608238978,-404.47768576,0.00018729,2]
[344608874,1733608238987,-305.5369132,0.00018729,2]
[344608875,1733608238996,-258.80130606,0.00018729,2]
[344608876,1733608239006,-150.0,0.00018729,2]
[344608877,1733608239015,-640.0,0.00018747,30]
[344608878,1733608239024,-404.47768576,0.00018815,2]
[344608879,1733608239034,-305.5369132,0.00018815,2]
[344608880,1733608239044,-258.80130606,0.00018815,2]
[344608881,1733608239053,-404.47768576,0.00018901,2]
[344608882,1733608239062,-305.5369132,0.00018901,2]
[344608883,1733608239071,-258.80130606,0.00018901,2]
[344608884,1733608239079,-150.0,0.00018901,2]
[344608885,1733608239089,-150.0,0.00018901,2]
[344608886,1733608239098,-724.61,0.00018929,2]
[344608887,1733608239107,-1769.0,0.00018952,2]
[344608888,1733608239116,-1300.0,0.00018952,2]
[344608889,1733608239125,-13209.99,0.00018962,7]
[344608890,1733608239134,-13209.99,0.00018962,7]
[344608891,1733608239143,-150.0,0.00018986,2]
[344608892,1733608239153,-404.47768576,0.00018986,2]
[344608893,1733608239162,-305.5369132,0.00018986,2]
[344608894,1733608239171,-258.80130606,0.00018986,2]
[344608895,1733608239180,-9319.0550368,0.00018987,2]
[344608896,1733608239189,-7118.3782319,0.00018987,2]
[344608897,1733608239198,-4917.701427,0.00018987,2]
[344608898,1733608239207,-2717.0246222,0.00018987,2]
[344608899,1733608239216,-784958.71368983,0.00019,2]
[344608900,1733608239225,-52553.83524076,0.00019,2]
[344608901,1733608239239,-45831.95754784,0.00019,2]
[344608902,1733608239249,-600.0,0.00019,2]
[344608903,1733608239258,-500.0,0.00019,2]
[344608904,1733608239268,-404.47768576,0.00019072,2]
[344608905,1733608239277,-305.5369132,0.00019072,2]
[344608906,1733608239286,-258.80130606,0.00019072,2]
[344608908,1733608239295,-1261.0,0.000191,6]
[344608909,1733608239304,-640.0,0.00019109,30]
[344608911,1733608239314,-404.47768576,0.00019157,2]
[344608912,1733608239323,-305.5369132,0.00019157,2]
[344608913,1733608239333,-258.80130606,0.00019157,2]
[344608914,1733608239342,-516.3478173,0.00019165,2]
[344608915,1733608239351,-150.0,0.00019177,2]
[344608916,1733608239361,-3000.0,0.00019178,2]
[344608917,1733608239370,-3000.0,0.00019178,2]
[344608918,1733608239380,-3000.0,0.00019178,2]
[344608919,1733608239389,-3000.0,0.00019178,2]
[344608920,1733608239398,-3000.0,0.00019178,2]
[344608921,1733608239407,-3000.0,0.00019178,2]
[344608922,1733608239417,-3000.0,0.00019178,2]
[344608923,1733608239426,-2812.66601017,0.00019178,2]
[344608924,1733608239435,-721.50844754,0.00019178,2]
[344608925,1733608239446,-599.27299999,0.00019178,2]
[344608926,1733608239457,-1109.76612253,0.00019178,2]
[344608927,1733608239468,-1569.45242994,0.00019178,2]
[344608928,1733608239478,-1769.0,0.00019226,2]
[344608929,1733608239487,-12810.60371896,0.00019235,7]
[344608930,1733608239502,-301.91055826,0.00019235,7]
[344608931,1733608239522,-97.47572278,0.00019235,7]
[344608932,1733608239532,-12913.50867722,0.00019235,7]
[344608933,1733608239544,-296.48132278,0.00019235,7]
[344608934,1733608239554,-1758.73,0.00019242,30]
[344608935,1733608239562,-404.47768576,0.00019243,4]
[344608936,1733608239572,-305.5369132,0.00019243,4]
[344608937,1733608239582,-258.80130606,0.00019243,4]
[344608938,1733608239591,-150.0,0.00019243,4]
[344608939,1733608239600,-169.26029586,0.00019314,2]
[344608940,1733608239609,-404.47768576,0.00019329,4]
[344608941,1733608239619,-305.5369132,0.00019329,4]
[344608942,1733608239628,-258.80130606,0.00019329,4]
[344608943,1733608239638,-193.92,0.00019341,2]
[344608944,1733608239647,-200.0,0.0001937,2]
[344608945,1733608239656,-150.0,0.00019371,4]
[344608946,1733608239665,-150.0,0.00019371,4]
[344608947,1733608239674,-150.0,0.00019371,4]
[344608948,1733608239684,-1000.0,0.00019389,2]
[344608949,1733608239693,-404.47768576,0.00019414,4]
[344608950,1733608239703,-305.5369132,0.00019414,4]
[344608951,1733608239713,-258.80130606,0.00019414,4]
[344608952,1733608239722,-339.42,0.00019467,2]
[344608953,1733608239731,-640.0,0.0001947,30]
[344608954,1733608239740,-1769.0,0.000195,2]
[344608955,1733608239749,-404.47768576,0.000195,4]
[344608957,1733608239759,-305.5369132,0.000195,4]
[344608959,1733608239768,-258.80130606,0.000195,4]
[344608961,1733608239777,-150.0,0.000195,4]
[344608963,1733608239787,-1803.61306128,0.00019508,7]
[344608965,1733608239798,-1799.59999998,0.00019508,7]
[344608969,1733608239823,-2194.64000001,0.00019508,7]
[344608971,1733608239835,-728.86710491,0.00019508,7]
[344608973,1733608239849,-6683.26983382,0.00019508,7]
[344608975,1733608239858,-11307.6445697,0.00019508,7]
[344608977,1733608239869,-1902.3454303,0.00019508,7]
[344608979,1733608239878,-404.47768576,0.00019586,4]
[344608982,1733608239888,-305.5369132,0.00019586,4]
[344608984,1733608239897,-258.80130606,0.00019586,4]
[344608986,1733608239906,-1078.98805294,0.000196,2]
[344608988,1733608239915,-25853.1357163,0.000196,2]
[344608989,1733608239924,-1078.78263524,0.000196,2]
[344608991,1733608239935,-1261.0,0.000196,7]
[344608993,1733608239945,-10024.70703065,0.0001961,2]
[344608995,1733608239954,-404.47768576,0.00019671,4]
[344608996,1733608239964,-305.5369132,0.00019671,4]
[344608997,1733608239974,-258.80130606,0.00019671,4]
[344608998,1733608239983,-150.0,0.00019757,4]
[344608999,1733608239993,-404.47768576,0.00019757,4]
[344609000,1733608240003,-305.5369132,0.00019757,4]
[344609001,1733608240012,-258.80130606,0.00019757,4]
[344609002,1733608240021,-1769.0,0.00019774,2]
[344609003,1733608240031,-2000.0,0.00019774,2]
[344609004,1733608240043,-13209.99,0.00019781,7]
[344609005,1733608240053,-13209.99,0.00019781,7]
[344609006,1733608240062,-640.0,0.00019831,30]
[344609007,1733608240071,-404.47768576,0.00019842,4]
[344609008,1733608240080,-305.5369132,0.00019842,4]
[344609009,1733608240091,-258.80130606,0.00019842,4]
[344609010,1733608240101,-150.0,0.00019842,4]
[344609011,1733608240110,-150.0,0.00019842,4]
[344609012,1733608240119,-9952.2150332,0.000199,2]
[344609013,1733608240128,-404.47768576,0.00019928,4]
[344609014,1733608240138,-305.5369132,0.00019928,4]
[344609015,1733608240148,-258.80130606,0.00019928,4]
[344609016,1733608240159,-392.5521084,0.00019986,2]
[344609017,1733608240168,-392.5521084,0.00019986,2]
[344609018,1733608240177,-392.5521084,0.00019986,2]
[344609019,1733608240187,-392.5521084,0.00019986,2]
[344609020,1733608240197,-392.5521084,0.00019986,2]
[344609021,1733608240207,-22360.76675524,0.00019999,2]
[344609022,1733608240217,-23128.58,0.00019999,2]
[344609023,1733608240226,-160696.4263174,0.0002,30]
[344609024,1733608240236,-2575.8511073,0.0002,4]
[344609025,1733608240246,-16577.95964621,0.0002,2]
[344609026,1733608240257,-14478.43297842,0.0002,2]
[344609027,1733608240269,-611.2632533,0.0002,2]
[344609029,1733608242564,-6247.82517457,0.0002,2]
[344609030,1733608242575,-84712.0,0.0002,3]
[344609031,1733608242585,-500.0,0.0002,2]
[344609032,1733608242594,-15124.46019454,0.0002,2]
[344609033,1733608242664,-267.38,0.0002,2]
[344609034,1733608242675,-260.9705147,0.0002,2]
[344609035,1733608242865,-12.73033627,0.0002,2]
[344609036,1733608242881,-3204.2999,0.0002,2]
[344609037,1733608242893,-3561.23447446,0.0002,2]
[344609038,1733608242904,-6311.10477091,0.0002,2]
[344609039,1733608242915,-2975.23039374,0.0002,2]
[344609040,1733608242959,-18282.58941538,0.0002,2]
[344609041,1733608242969,-72050.91303954,0.0002,2]
[344609105,1733608245859,-10009.57919999,0.0002,2]
[344609106,1733608518558,-1000.0,0.00019006,30]
[344609108,1733608756273,100000.0,0.00021,120]
[344609110,1733609290733,4899.97382159,0.000125,2]
[344609111,1733609332495,-5000000.0,0.00027656,30]
[344609112,1733609337033,-5000000.0,0.00027656,30]
[344609113,1733609342394,-5000000.0,0.00027656,30]
[344609114,1733609389667,-1000.0,0.00027656,60]
[344609115,1733609389691,-1000.0,0.00027656,60]
[344609116,1733609389714,-1000.0,0.00027656,60]
[344609117,1733609389737,-1000.0,0.00027656,60]
[344609118,1733609389760,-1000.0,0.00027656,60]
[344609119,1733609389784,-1000.0,0.00027656,60]
[344609120,1733609389807,-1000.0,0.00027656,120]
[344609121,1733609389830,-4170.77648518,0.00027656,60]
[344609122,1733609389854,-1000.0,0.00027656,60]
[344609123,1733609389877,-1107.26223024,0.00027656,120]
[344609124,1733609389900,-1500.0,0.00027656,120]
[344609125,1733609389922,-560.82661194,0.00027656,90]
[344609126,1733609389945,-2755.78820638,0.00027656,120]
[344609127,1733609389969,-524.79942013,0.00027656,120]
[344609128,1733609389995,-2322.4728513,0.00027656,120]
[344609129,1733609390019,-3143.49329275,0.00027656,120]
[344609130,1733609390043,-1183.19885215,0.00027656,120]
[344609131,1733609390069,-11259.05094302,0.00027656,120]
[344609132,1733609390092,-4804.41594936,0.00027656,60]
[344609133,1733609390115,-19449.39859446,0.00027656,120]
[344609134,1733609390138,-3678.69703589,0.00027656,120]
[344609135,1733609390162,-205.83037162,0.00027656,120]
[344609136,1733609390186,-342.45038068,0.00027656,120]
[344609137,1733609390210,-1094.98084572,0.00027656,120]
[344609138,1733609390234,-3109.68607157,0.00027656,120]
[344609139,1733609390256,-542.41271581,0.00027656,120]
[344609140,1733609390279,-955.78402329,0.00027656,120]
[344609141,1733609390306,-4066.29283065,0.00027656,120]
[344609142,1733609390332,-1489.0,0.00027656,120]
[344609143,1733609390356,-544.71868396,0.00027656,120]
[344609144,1733609390379,-6883.1684966,0.00027656,120]
[344609145,1733609390403,-2354.82224158,0.00027656,120]
[344609146,1733609390426,-822.56427672,0.00027656,120]
[344609147,1733609390449,-3268.53841619,0.00027656,120]
[344609148,1733609390472,-1455.06123167,0.00027656,60]
[344609149,1733609390495,-1195.54949747,0.00027656,120]
[344609150,1733609390518,-5701.40733868,0.00027656,120]
[344609151,1733609390541,-1747.55112908,0.00027656,120]
[344609152,1733609390565,-469.33975217,0.00027656,120]
[344609153,1733609390755,-756.0,0.00027656,120]
[344609154,1733609390779,-1091.82584488,0.00027656,120]
[344609155,1733609390802,-703.92002001,0.00027656,120]
[344609156,1733609390826,-3089.02049529,0.00027656,120]
[344609157,1733609390849,-2522.31801692,0.00027656,120]
[344609158,1733609390874,-390.32868786,0.00027656,120]
[344609159,1733609390898,-155.01374305,0.00027656,120]
[344609160,1733609390922,-110658.21050634,0.00027656,120]
[344609161,1733609390945,-10000.0,0.00027656,120]
[344609162,1733609390969,-10000.0,0.00027656,90]
[344609163,1733609390993,-10000.0,0.00027656,60]
[344609164,1733609391016,-1588.0,0.00027656,60]
[344609165,1733609391040,-1859.0,0.00027656,60]
[344609166,1733609391067,-698.999999,0.00027656,120]
[344609167,1733609391092,-734.82915032,0.00027656,120]
[344609168,1733609391115,-161.28120263,0.00027656,120]
[344609169,1733609391140,-16967.34205992,0.00027656,120]
[344609170,1733609391164,-5716.3495745,0.00027656,120]
[344609171,1733609391188,-2215.9727313,0.00027656,120]
[344609172,1733609391212,-8000.0,0.00027656,120]
[344609173,1733609391236,-5031.85128282,0.00027656,120]
[344609174,1733609391260,-158000.0,0.00027656,120]
[344609175,1733609391286,-3555.0,0.00027656,120]
[344609176,1733609391311,-57485.44354465,0.00027656,120]
[344609177,1733609391335,-302.97969074,0.00027656,120]
[344609178,1733609391359,-15627.65698064,0.00027656,120]
[344609179,1733609391384,-36860.65790387,0.00027656,60]
[344609180,1733609391409,-235.0,0.00027656,120]
[344609181,1733609391431,-204.40548895,0.00027656,120]
[344609182,1733609391455,-881.0,0.00027656,120]
[344609183,1733609391491,-1000.0,0.00027656,120]
[344609184,1733609391517,-1000.0,0.00027656,120]
[344609185,1733609391541,-1000.0,0.00027656,120]
[344609186,1733609391567,-500.0,0.00027656,60]
[344609187,1733609391591,-398.11214583,0.00027656,120]
[344609188,1733609391615,-3121.0,0.00027656,120]
[344609189,1733609391639,-7409.0,0.00027656,120]
[344609190,1733609391664,-4042.96560455,0.00027656,120]
[344609191,1733609391688,-6250.55972517,0.00027656,120]
[344609192,1733609391711,-4721.3976268,0.00027656,120]
[344609193,1733609391735,-6214.69889377,0.00027656,60]
[344609194,1733609391759,-4124.85572745,0.00027656,120]
[344609195,1733609391789,-3517.79842558,0.00027656,120]
[344609196,1733609391815,-3513.99344737,0.00027656,120]
[344609197,1733609391838,-4750.6451858,0.00027656,120]
[344609198,1733609391862,-3770.51644511,0.00027656,120]
[344609199,1733609391886,-3611.01001803,0.00027656,90]
[344609200,1733609391909,-99999.999999,0.00027656,120]
[344609201,1733609391933,-4090.8899371,0.00027656,120]
[344609202,1733609391957,-3955.60597895,0.00027656,120]
[344609203,1733609391980,-4776.0188438,0.00027656,120]
[344609204,1733609392004,-10000.0,0.00027656,120]
[344609205,1733609392027,-10000.0,0.00027656,120]
[344609206,1733609392051,-10000.0,0.00027656,120]
[344609207,1733609392075,-4475.13333984,0.00027656,91]
[344609208,1733609392097,-10000.0,0.00027656,120]
[344609209,1733609392121,-3044.93481159,0.00027656,120]
[344609210,1733609392144,-4770.0,0.00027656,120]
[344609211,1733609392168,-10000.0,0.00027656,120]
[344609212,1733609392192,-10000.0,0.00027656,120]
[344609213,1733609392216,-10000.0,0.00027656,120]
[344609214,1733609392241,-10000.0,0.00027656,120]
[344609215,1733609392265,-5814.25584288,0.00027656,120]
[344609216,1733609392292,-10000.0,0.00027656,120]
[344609217,1733609392316,-4130.49698955,0.00027656,120]
[344609218,1733609392340,-3352.0,0.00027656,120]
[344609219,1733609392366,-349.37953109,0.00027656,120]
[344609220,1733609392390,-924.11061591,0.00027656,120]
[344609221,1733609392414,-5000.18544098,0.00027656,120]
[344609222,1733609392438,-19000.0,0.00027656,120]
[344609223,1733609392462,-158.831998,0.00027656,40]
[344609224,1733609392487,-158.831998,0.00027656,40]
[344609225,1733609407171,-5000000.0,0.00027656,30]
[344609226,1733609421997,-5000000.0,0.00027656,30]
[344609227,1733609426498,-5000000.0,0.00027656,30]
[344609261,1733609431674,-2082.75526859,0.00014276,2]
[344609262,1733609431686,-546.21011004,0.00014276,2]
[344609263,1733609431843,-3335.03462137,0.00014276,2]
[344609264,1733609431852,-13716.0,0.00014276,2]
[344609265,1733609431862,-509.39,0.0001493,2]
[344609266,1733609431871,-492.25,0.0001493,2]
[344609267,1733609431880,-495.17,0.0001493,2]
[344609268,1733609431889,-498.66,0.0001493,2]
[344609269,1733609431899,-506.18,0.0001493,2]
[344609270,1733609431909,-496.57,0.00014931,2]
[344609271,1733609431919,-508.7,0.00014931,2]
[344609272,1733609431929,-502.22,0.00014931,2]
[344609273,1733609431938,-496.19,0.00014931,2]
[344609274,1733609431947,-497.84,0.00014931,2]
[344609287,1733609432159,-495.63,0.00014931,2]
[344609289,1733609432169,-498.22,0.00014931,2]
[344609291,1733609432178,-503.7,0.00014931,2]
[344609293,1733609432187,-502.63,0.00014931,2]
[344609295,1733609432196,-503.51,0.00014931,2]
[344609297,1733609432205,-490.09,0.00014931,2]
[344609299,1733609432215,-492.79,0.00014931,2]